lending/lending_fUSD_20240202
["ID","MTS","AMOUNT","RATE_DAILY","PERIOD"]
[313191368,1706909439361,-282.08995367,0.0002274,2]
[313191384,1706909439496,-1044.4038042,0.0002274,2]
[313191387,1706909439508,-302.98331825,0.0002274,2]
[313191388,1706909439518,-487.54545682,0.0002274,2]
[313191390,1706909439528,-474.4092373,0.0002274,2]
[313191391,1706909439538,-295.78388584,0.0002274,2]
[313191392,1706909439547,-2000.0,0.00022742,2]
[313191393,1706909439556,-150.0,0.00022742,2]
[313191394,1706909439565,-150.0,0.00022742,2]
[313191395,1706909439574,-150.0,0.00022742,2]
[313191396,1706909439583,-1500.0,0.00022744,2]
[313191397,1706909439592,-150.0,0.00022744,2]
[313191398,1706909439601,-300.0,0.00022745,2]
[313191399,1706909439611,-150.0,0.00022746,2]
[313191400,1706909439620,-150.0,0.00022747,2]
[313191401,1706909439629,-150.0,0.00022748,2]
[313191402,1706909439639,-150.0,0.00022748,2]
[313191403,1706909439647,-150.0,0.0002275,2]
[313191405,1706909439656,-936.66368189,0.0002275,2]
[313191407,1706909439666,-150.0,0.00022753,2]
[313191409,1706909439674,-150.0,0.00022758,2]
[313191411,1706909439684,-150.0,0.00022758,2]
[313191413,1706909439694,-150.0,0.00022761,2]
[313191415,1706909439703,-150.0,0.00022763,2]
[313191417,1706909439712,-150.0,0.00022764,2]
[313191419,1706909439721,-150.0,0.00022766,2]
[313191421,1706909439730,-300.0,0.00022767,2]
[313191423,1706909439739,-150.0,0.00022768,2]
[313191424,1706909439748,-1500.0,0.00022768,2]
[313191425,1706909439758,-150.0,0.00022768,2]
[313191426,1706909439768,-1500.0,0.00022769,2]
[313191427,1706909439779,-150.0,0.0002277,2]
[313191428,1706909439795,-150.0,0.00022772,2]
[313191429,1706909439805,-300.0,0.00022773,2]
[313191430,1706909439815,-150.0,0.00022775,2]
[313191431,1706909439836,-150.0,0.00022776,2]
[313191432,1706909439846,-152.55,0.00022778,2]
[313191433,1706909439856,-200.0,0.0002278,2]
[313191434,1706909439867,-150.0,0.00022783,2]
[313191435,1706909439877,-150.0,0.0002279,2]
[313191436,1706909439887,-150.0,0.00022792,2]
[313191437,1706909439896,-150.0,0.00022792,2]
[313191438,1706909439906,-150.0,0.00022794,2]
[313191439,1706909439915,-150.0,0.00022794,2]
[313191440,1706909439925,-150.0,0.00022794,2]
[313191441,1706909439934,-150.0,0.00022796,2]
[313191442,1706909439944,-157.86538469,0.000228,2]
[313191443,1706909439954,-483.27,0.000228,2]
[313191444,1706909439963,-360.95,0.000228,2]
[313191445,1706909439973,-420.36,0.000228,2]
[313191446,1706909439983,-420.36,0.000228,2]
[313191447,1706909439992,-150.0,0.000228,2]
[313191448,1706909440002,-403.47,0.000228,2]
[313191449,1706909440013,-420.36,0.000228,2]
[313191450,1706909440024,-157.61,0.000228,2]
[313191451,1706909440033,-1890.22,0.000228,2]
[313191452,1706909440045,-1500.0,0.000228,8]
[313191453,1706909440055,-300.0,0.00022802,2]
[313191454,1706909440066,-257.70962994,0.00022802,2]
[313191455,1706909440075,-150.0,0.00022803,2]
[313191456,1706909440085,-152.09529989,0.00022804,2]
[313191457,1706909440094,-1500.0,0.00022804,2]
[313191458,1706909440103,-150.0,0.00022804,2]
[313191459,1706909440113,-150.0,0.00022805,2]
[313191460,1706909440122,-300.0,0.00022806,2]
[313191461,1706909440131,-165.62254498,0.0002281,2]
[313191462,1706909440140,-300.0,0.00022811,2]
[313191463,1706909440150,-753.0,0.00022813,2]
[313191465,1706909440159,-200.0,0.00022814,2]
[313191466,1706909440170,-150.0,0.00022814,2]
[313191467,1706909440180,-150.0,0.00022814,2]
[313191468,1706909440190,-800.0,0.00022815,2]
[313191469,1706909440200,-244.19440529,0.00022818,2]
[313191470,1706909440210,-150.0,0.0002282,2]
[313191471,1706909440220,-150.0,0.00022821,2]
[313191472,1706909440229,-150.0,0.00022821,2]
[313191473,1706909440240,-150.0,0.00022822,2]
[313191474,1706909440251,-150.0,0.00022825,2]
[313191475,1706909440260,-150.0,0.00022826,2]
[313191476,1706909440269,-150.0,0.0002283,2]
[313191477,1706909440279,-150.0,0.00022832,2]
[313191478,1706909440288,-150.0,0.00022835,2]
[313191479,1706909440297,-150.0,0.00022836,2]
[313191480,1706909440306,-1500.0,0.00022837,2]
[313191481,1706909440316,-150.0,0.00022839,2]
[313191482,1706909440325,-1500.0,0.0002284,2]
[313191483,1706909440334,-150.0,0.0002284,2]
[313191484,1706909440343,-300.0,0.00022841,2]
[313191485,1706909440352,-150.0,0.00022841,2]
[313191486,1706909440362,-150.0,0.00022843,2]
[313191487,1706909440373,-150.0,0.00022845,2]
[313191488,1706909440383,-150.0,0.00022846,2]
[313191489,1706909440393,-150.0,0.00022848,2]
[313191490,1706909440403,-150.0,0.00022853,2]
[313191491,1706909440412,-150.0,0.00022854,2]
[313191492,1706909440422,-1500.0,0.00022856,2]
[313191493,1706909440433,-150.0,0.00022857,2]
[313191494,1706909440443,-150.0,0.00022857,2]
[313191495,1706909440452,-842.5370952,0.00022858,2]
[313191496,1706909440461,-150.0,0.00022858,2]
[313191497,1706909440470,-150.0,0.00022859,2]
[313191498,1706909440482,-1500.0,0.00022865,2]
[313191499,1706909440491,-150.0,0.00022866,2]
[313191500,1706909440501,-150.0,0.00022867,2]
[313191501,1706909440511,-150.0,0.00022868,2]
[313191502,1706909440522,-150.0,0.00022869,2]
[313191503,1706909440531,-150.0,0.00022869,2]
[313191504,1706909440541,-150.0,0.00022871,2]
[313191505,1706909440551,-150.0,0.00022872,2]
[313191506,1706909440561,-150.0,0.00022875,2]
[313191507,1706909440571,-150.0,0.00022876,2]
[313191508,1706909440581,-150.0,0.00022877,2]
[313191509,1706909440590,-150.0,0.00022878,2]
[313191510,1706909440600,-1500.0,0.00022878,2]
[313191511,1706909440609,-150.0,0.00022879,2]
[313191512,1706909440619,-150.0,0.00022879,2]
[313191513,1706909440629,-150.0,0.00022882,2]
[313191514,1706909440638,-150.0,0.00022883,2]
[313191515,1706909440648,-1500.0,0.00022887,2]
[313191516,1706909440657,-150.0,0.00022888,2]
[313191517,1706909440666,-1549.9028573,0.00022889,2]
[313191518,1706909440676,-3520.7346831,0.00022889,2]
[313191519,1706909440686,-312.17935994,0.00022891,2]
[313191520,1706909440696,-152.55,0.00022892,2]
[313191521,1706909440705,-150.0,0.00022893,2]
[313191522,1706909440715,-150.0,0.00022898,2]
[313191523,1706909440724,-5000.0,0.00022899,2]
[313191524,1706909440734,-150.0,0.000229,2]
[313191525,1706909440744,-165.62254498,0.000229,2]
[313191526,1706909440754,-199.21370918,0.000229,2]
[313191527,1706909440763,-1367.0,0.000229,2]
[313191528,1706909440773,-1107.0739468,0.000229,2]
[313191529,1706909440788,-187.4532736,0.000229,2]
[313191530,1706909440798,-572.35078896,0.000229,2]
[313191531,1706909440807,-378.34655068,0.000229,6]
[313191532,1706909440817,-300.0,0.000229,8]
[313191533,1706909440827,-1500.0,0.00022901,2]
[313191534,1706909440838,-150.0,0.00022903,2]
[313191535,1706909440847,-150.0,0.00022905,2]
[313191536,1706909440857,-150.0,0.00022905,2]
[313191537,1706909440867,-300.0,0.00022906,2]
[313191538,1706909440876,-150.0,0.0002291,2]
[313191539,1706909440887,-150.0,0.00022913,2]
[313191540,1706909440896,-150.0,0.00022915,2]
[313191541,1706909440906,-234.63597224,0.00022916,2]
[313191542,1706909440915,-150.0,0.00022917,2]
[313191543,1706909440925,-150.0,0.00022919,2]
[313191544,1706909440934,-150.0,0.00022924,2]
[313191545,1706909440943,-150.0,0.00022925,2]
[313191546,1706909440953,-150.0,0.00022927,2]
[313191547,1706909440962,-35.80932012,0.00022935,2]
[313191548,1706909440978,-114.19067988,0.00022935,2]
[313191549,1706909440987,-1500.0,0.00022938,2]
[313191550,1706909440997,-150.0,0.00022938,2]
[313191551,1706909441006,-300.0,0.00022939,2]
[313191552,1706909441015,-1500.0,0.0002294,2]
[313191553,1706909441025,-150.0,0.0002294,2]
[313191554,1706909441034,-150.0,0.00022941,2]
[313191555,1706909441043,-1500.0,0.00022941,2]
[313191556,1706909441052,-150.0,0.00022943,2]
[313191557,1706909441061,-150.0,0.00022944,2]
[313191558,1706909441070,-150.0,0.00022945,2]
[313191559,1706909441079,-150.0,0.00022948,2]
[313191560,1706909441088,-150.0,0.00022948,2]
[313191561,1706909441098,-150.0,0.00022949,2]
[313191562,1706909441107,-300.0,0.0002295,2]
[313191563,1706909441116,-150.0,0.0002295,2]
[313191564,1706909441125,-150.0,0.0002295,2]
[313191565,1706909441134,-300.0,0.00022951,2]
[313191566,1706909441143,-300.0,0.00022951,2]
[313191567,1706909441152,-150.0,0.00022952,2]
[313191568,1706909441161,-2000.0,0.00022953,2]
[313191569,1706909441170,-200.0,0.00022953,2]
[313191570,1706909441179,-200.0,0.00022953,2]
[313191571,1706909441188,-150.0,0.00022954,2]
[313191572,1706909441198,-150.0,0.00022954,2]
[313191573,1706909441207,-150.0,0.00022956,2]
[313191574,1706909441217,-150.0,0.00022957,2]
[313191575,1706909441226,-1500.0,0.00022958,2]
[313191576,1706909441235,-150.0,0.00022959,2]
[313191578,1706909441346,-150.0,0.00022962,2]
[313191580,1706909441355,-150.0,0.00022963,2]
[313191582,1706909441364,-150.0,0.00022963,2]
[313191584,1706909441373,-150.0,0.00022964,2]
[313191586,1706909441382,-400.59913355,0.00022967,2]
[313191588,1706909441391,-150.0,0.00022967,2]
[313191591,1706909441402,-150.0,0.00022967,2]
[313191594,1706909441411,-150.0,0.00022968,2]
[313191596,1706909441420,-2000.0,0.00022969,2]
[313191599,1706909441429,-300.0,0.00022972,2]
[313191602,1706909441439,-150.0,0.00022974,2]
[313191604,1706909441448,-150.0,0.00022975,2]
[313191606,1706909441457,-150.0,0.00022975,2]
[313191607,1706909441468,-150.0,0.00022976,2]
[313191609,1706909441477,-1500.0,0.00022977,2]
[313191610,1706909441486,-150.0,0.00022978,2]
[313191611,1706909441494,-150.0,0.00022982,2]
[313191612,1706909441503,-150.0,0.00022984,2]
[313191613,1706909441512,-1406.4683422,0.00022984,2]
[313191614,1706909441521,-1263.0338272,0.00022984,2]
[313191615,1706909441531,-3196.0772158,0.00022984,2]
[313191616,1706909441540,-300.0,0.00022986,2]
[313191617,1706909441549,-47909.0,0.00022986,2]
[313191618,1706909441558,-220.2573698,0.00022989,2]
[313191619,1706909441567,-572.32080993,0.00022989,2]
[313191620,1706909441576,-570.88537456,0.0002299,2]
[313191621,1706909441585,-150.0,0.0002299,2]
[313191622,1706909441595,-150.0,0.0002299,2]
[313191623,1706909441603,-570.88537456,0.0002299,2]
[313191624,1706909441612,-341.54331615,0.00022996,2]
[313191625,1706909441621,-447.89292513,0.00022996,2]
[313191626,1706909441630,-1021.96607554,0.00022996,2]
[313191627,1706909441640,-7128.15522643,0.00022996,5]
[313191628,1706909441648,-2117.72023772,0.00022996,2]
[313191629,1706909441658,-161.81736275,0.00022996,2]
[313191630,1706909441667,-150.01,0.00022997,2]
[313191631,1706909441676,-522.15385911,0.00022997,2]
[313191632,1706909441686,-353.51781975,0.00022998,2]
[313191633,1706909441695,-13295.20838275,0.00022998,2]
[313191634,1706909441708,-9159.89001551,0.00022998,2]
[313191635,1706909441717,-715.32,0.00022998,2]
[313191636,1706909441726,-200.0,0.00022998,2]
[313191637,1706909441735,-2000.0,0.00022998,2]
[313191638,1706909441744,-200.0,0.00022998,2]
[313191639,1706909441753,-248.07374907,0.00022999,2]
[313191640,1706909441762,-500.0,0.00022999,2]
[313191641,1706909441772,-393.49433292,0.00022999,2]
[313191642,1706909441781,-500.0,0.00022999,2]
[313191643,1706909441793,-500.0,0.00022999,2]
[313191644,1706909441802,-500.0,0.00022999,2]
[313191645,1706909441811,-500.0,0.00022999,2]
[313191646,1706909441820,-500.0,0.00022999,2]
[313191647,1706909441830,-500.0,0.00022999,2]
[313191648,1706909441839,-380.97562898,0.00022999,2]
[313191649,1706909441848,-500.0,0.00022999,2]
[313191650,1706909441857,-564.81854688,0.00022999,2]
[313191651,1706909441868,-500.0,0.00022999,2]
[313191652,1706909441877,-635.86256099,0.00022999,2]
[313191653,1706909441886,-500.0,0.00022999,2]
[313191654,1706909441895,-571.81332129,0.00022999,2]
[313191655,1706909441904,-500.0,0.00022999,2]
[313191656,1706909441913,-500.0,0.00022999,2]
[313191657,1706909441922,-446.88403832,0.00022999,2]
[313191658,1706909441931,-501.43720733,0.00022999,2]
[313191659,1706909441940,-500.0,0.00022999,2]
[313191660,1706909441949,-500.0,0.00022999,2]
[313191661,1706909441958,-500.0,0.00022999,2]
[313191662,1706909441967,-500.0,0.00022999,2]
[313191663,1706909441976,-500.0,0.00022999,2]
[313191664,1706909441985,-500.0,0.00022999,2]
[313191665,1706909441994,-583.2586481,0.00022999,2]
[313191666,1706909442003,-500.0,0.00022999,2]
[313191667,1706909442012,-300.0,0.00022999,2]
[313191668,1706909442021,-300.0,0.00022999,2]
[313191669,1706909442030,-300.0,0.00022999,2]
[313191670,1706909442039,-300.0,0.00022999,2]
[313191671,1706909442049,-300.0,0.00022999,2]
[313191672,1706909442058,-300.0,0.00022999,2]
[313191673,1706909442067,-300.0,0.00022999,2]
[313191674,1706909442075,-300.0,0.00022999,2]
[313191675,1706909442084,-300.0,0.00022999,2]
[313191676,1706909442094,-300.0,0.00022999,2]
[313191677,1706909442105,-300.0,0.00022999,2]
[313191678,1706909442115,-300.0,0.00022999,2]
[313191679,1706909442125,-300.0,0.00022999,2]
[313191680,1706909442135,-300.0,0.00022999,2]
[313191681,1706909442145,-300.0,0.00022999,2]
[313191682,1706909442154,-300.0,0.00022999,2]
[313191683,1706909442164,-300.0,0.00022999,2]
[313191684,1706909442174,-300.0,0.00022999,2]
[313191685,1706909442182,-300.0,0.00022999,2]
[313191686,1706909442191,-300.0,0.00022999,2]
[313191687,1706909442201,-305.30270407,0.00022999,2]
[313191688,1706909442209,-500.0,0.00022999,2]
[313191689,1706909442219,-730.8,0.00023,2]
[313191690,1706909442228,-79616.50140013,0.00023,3]
[313191691,1706909442244,-363.3390023,0.00023,3]
[313191692,1706909442255,-415.94592852,0.00023,3]
[313191693,1706909442267,-13441.21662406,0.00023,3]
[313191694,1706909442278,-6486.32809007,0.00023,3]
[313191695,1706909442290,-1076.54155544,0.00023,3]
[313191709,1706909442524,-150.0,0.00022739,2]
[313191712,1706909442533,-150.0,0.00022748,2]
[313191714,1706909442542,-150.0,0.00022749,2]
[313191716,1706909442552,-150.0,0.00022752,2]
[313191718,1706909442561,-150.0,0.00022781,2]
[313191720,1706909442570,-150.0,0.0002279,2]
[313191721,1706909442580,-150.0,0.00022813,2]
[313191722,1706909442589,-150.0,0.00022817,2]
[313191723,1706909442598,-150.0,0.00022817,2]
[313191724,1706909442607,-150.0,0.00022818,2]
[313191725,1706909442616,-150.0,0.00022836,2]
[313191726,1706909442625,-150.0,0.00022838,2]
[313191727,1706909442634,-150.0,0.00022856,2]
[313191728,1706909442643,-150.0,0.00022856,2]
[313191729,1706909442653,-150.0,0.0002288,2]
[313191730,1706909442662,-150.0,0.00022928,2]
[313191731,1706909442671,-46.20286379,0.00022985,2]
[313191732,1706909442690,-103.79713621,0.00022985,2]
[313191733,1706909442700,-150.0,0.00022989,2]
[313191734,1706909442709,-1917.96196935,0.00023,3]
[313191735,1706909442721,-85717.33439217,0.00023,3]
[313191736,1706909443403,-661.32372572,0.00023,3]
[313191739,1706909443612,-8437.99415589,0.00023,3]
[313191742,1706909443628,-314064.54208467,0.00023,3]
[313191744,1706909443639,-419.12892776,0.00023,3]
[313191769,1706909448914,-478.64103751,0.00022997,2]
[313191770,1706909448924,-349.65896354,0.00023,3]
[313191771,1706909448936,-454.39061962,0.00023,3]
[313191772,1706909449088,-59860.7748984,0.00023,3]
[313191773,1706909449104,-4250.5,0.00023,3]
[313191774,1706909449125,-2284.99999999,0.00023,3]
[313191775,1706909449139,-2251.21878969,0.00023,3]
[313191807,1706909451510,9291.45,0.00021581,2]
[313191808,1706909453584,11221.88801498,0.00022436,2]
[313191809,1706909453658,26814.429,0.0002244,2]
[313191810,1706909455632,30926.7,0.0002244,2]
[313191811,1706909460392,282.89706329,0.00022436,2]
[313191812,1706909461626,940.66361279,0.00022436,2]
[313191813,1706909463718,204.0,0.00021592,2]
[313191814,1706909463749,250.6,0.00021581,2]
[313191815,1706909510499,2500.0,0.0002244,2]
[313191816,1706909516895,840.0,0.0002232,2]
[313191817,1706909533260,14455.68821814,0.00021473,2]
[313191818,1706909540752,223.7949929,0.00021581,2]
[313191819,1706909563258,162.08,0.00022289,2]
[313191820,1706909573075,2000.0,0.00022262,2]
[313191821,1706909589548,68534.0306,0.00022439,2]
[313191822,1706909633812,250.0,0.00022037,2]
[313191823,1706909634830,822.43,0.00022037,2]
[313191824,1706909648447,1000.0,0.000225,2]
[313191825,1706909702662,158.1,0.00022038,2]
[313191826,1706909703124,158.1,0.00022421,2]
[313191827,1706909823724,440.19,0.00019888,2]
[313191828,1706909823959,440.19,0.00022152,2]
[313191829,1706909831676,250.0,0.00021806,2]
[313191830,1706910006420,162.08,0.0002181,2]
[313191831,1706910015012,328.0,0.00021785,2]
[313191832,1706910017521,402.21,0.00021785,2]
[313191833,1706910020865,159.68,0.0002181,2]
[313191834,1706910068589,685.35,0.00021789,2]
[313191835,1706910087749,250.0,0.00021918,2]
[313191836,1706910157146,158.1,0.00021974,2]
[313191847,1706910203396,1016.8091,0.00022433,2]
[313191851,1706910244028,204.0,0.00021547,2]
[313191852,1706910244864,225.26,0.0002181,2]
[313191853,1706910293174,200.0,0.0002181,2]
[313191855,1706910328578,421.03,0.00019875,2]
[313191856,1706910328809,421.03,0.00022139,2]
[313191857,1706910351301,296.15693554,0.00025999,120]
[313191858,1706910355286,334.07,0.00021792,2]
[313191861,1706910475780,737.6,0.00021792,2]
[313191862,1706910494862,607.06,0.00021798,2]
[313191863,1706910519335,200.48,0.00021792,2]
[313191864,1706910526042,411.17733249,0.0002175,2]
[313191865,1706910552715,250.0,0.00021918,2]
[313191873,1706910631808,-160.45280182,0.00022561,2]
[313191874,1706910631818,-155.99997451,0.00022562,2]
[313191875,1706910631827,-155.99997447,0.0002261,2]
[313191876,1706910631837,-734.88,0.00022641,2]
[313191877,1706910631846,-2.22073915,0.00022659,2]
[313191880,1706910631869,-153.77923532,0.00022659,2]
[313191882,1706910631879,-733.27,0.00022661,2]
[313191884,1706910631889,-725.37,0.00022661,2]
[313191885,1706910631898,-401.38076211,0.00022661,2]
[313191886,1706910631909,-292.16600001,0.00022661,2]
[313191887,1706910631944,-41.76323788,0.00022661,2]
[313191888,1706910631956,-237.84006752,0.00022662,2]
[313191889,1706910631976,-271.20500031,0.00022662,2]
[313191890,1706910632006,-200.87493217,0.00022662,2]
[313191891,1706910632020,-298.72855733,0.00022662,2]
[313191892,1706910632038,-412.27144267,0.00022662,2]
[313191893,1706910632054,-186.37353279,0.00022663,2]
[313191900,1706910632433,-526.40835608,0.00022663,2]
[313191901,1706910632454,-20.09811113,0.00022663,2]
[313191902,1706910632466,-733.36,0.00022664,2]
[313191903,1706910632479,-560.93702581,0.00022666,2]
[313191904,1706910632592,-173.02297419,0.00022666,2]
[313191905,1706910632604,-499.99,0.00022666,2]
[313191906,1706910632616,-714.87,0.00022668,2]
[313191907,1706910632631,-737.6,0.00022671,2]
[313191908,1706910632643,-732.2,0.00022675,2]
[313191909,1706910632656,-717.1,0.0002268,2]
[313191910,1706910632669,-731.04,0.00022687,2]
[313191911,1706910632682,-330.28,0.00022697,2]
[313191912,1706910632691,-711.98,0.00022697,2]
[313191913,1706910632702,-155.99997447,0.00022707,2]
[313191914,1706910632712,-368.00082089,0.0002271,2]
[313191922,1706910637831,-525.44699598,0.0002256,2]
[313191923,1706910637840,-274.55300402,0.0002271,2]
[313191924,1706910637888,-77.97617509,0.0002271,2]
[313191925,1706910637898,-459.48882491,0.00022728,2]
[313191926,1706910637910,-263.00117509,0.00022728,2]
[313191927,1706910637920,-730.18,0.00022752,2]
[313191928,1706910637929,-155.99997447,0.00022755,2]
[313191929,1706910637939,-200.0,0.0002278,2]
[313191930,1706910637948,-155.0,0.00022783,2]
[313191931,1706910637957,-732.03,0.00022783,2]
[313191932,1706910637966,-1607.95277973,0.00022799,2]
[313191933,1706910637978,-1252.0554888,0.00022799,2]
[313191934,1706910637995,-2569.66943147,0.00022799,2]
[313191935,1706910638006,-173.08456492,0.000228,2]
[313191936,1706910638015,-1815.09607335,0.000228,2]
[313191937,1706910638033,-2224.97989414,0.000228,2]
[313191958,1706910639310,-2406.21381816,0.000228,2]
[313191959,1706910639319,-2535.6162441,0.000228,2]
[313191960,1706910639331,-347.96933797,0.000228,2]
[313191961,1706910639342,-155.99997447,0.00022803,2]
[313191962,1706910639351,-800.0,0.00022815,2]
[313191963,1706910639361,-800.0,0.00022815,2]
[313191964,1706910639370,-711.17,0.00022827,2]
[313191965,1706910639379,-155.99997447,0.00022852,2]
[313191966,1706910639389,-200.48,0.00022881,2]
[313191967,1706910639398,-711.62,0.00022885,2]
[313191968,1706910639407,-187.14142257,0.00022889,2]
[313191969,1706910639416,-155.0,0.00022897,2]
[313191970,1706910639425,-283.71906152,0.00022897,2]
[313191971,1706910639434,-8441.900229,0.00022897,2]
[313192011,1706910640627,-313.8993738,0.00022897,2]
[313192014,1706910640639,-3587.76510878,0.00022897,2]
[313192038,1706910641436,-184.7423,0.00022561,2]
[313192039,1706910641445,-1932.5577,0.00022897,2]
[313192374,1706910645060,-1052.28504407,0.00022897,2]
[313192457,1706910645885,-399.67000005,0.00022897,2]
[313192459,1706910645896,-3321.35338433,0.00022897,2]
[313192461,1706910645906,-502.73699602,0.00022897,2]
[313192462,1706910645915,-155.00006412,0.00022897,2]
[313192463,1706910645924,-4197.05627272,0.00022897,2]
[313192464,1706910645945,-341.55222176,0.00022897,2]
[313192465,1706910646057,-109.9420486,0.00022897,2]
[313192466,1706910646067,-249.46647659,0.00022897,2]
[313192467,1706910646076,-218.87088982,0.00022897,2]
[313192468,1706910646087,-13.7910248,0.00022897,2]
[313192469,1706910646097,-4638.55770228,0.00022897,2]
[313192470,1706910646107,-168.12981528,0.00022898,2]
[313192471,1706910646116,-362.63221903,0.00022898,2]
[313192472,1706910646126,-296.68841754,0.00022898,2]
[313192473,1706910646135,-948.8657113,0.00022898,2]
[313192535,1706910663912,222.16,0.00022205,2]
[313192536,1706910683208,250.0,0.00022099,2]
[313192537,1706910685030,158.02,0.0002224,2]
[313192538,1706910764766,401.29,0.0002013,2]
[313192539,1706910764981,401.29,0.00022394,2]
[313192540,1706910821143,220.04320149,0.00022,2]
[313192541,1706910825608,214.6,0.00021939,2]
[313192542,1706910850130,459.25724567,0.00012,30]
[313192544,1706910929144,285.11,0.0002192,2]
[313192545,1706910962793,250.0,0.00021925,2]
[313192546,1706910965364,204.0,0.00022293,2]
[313192547,1706910974492,159.77,0.00021925,2]
[313192548,1706910988492,409.92,0.00021906,2]
[313192549,1706911034142,533.58,0.00021906,2]
[313192550,1706911053767,206.0,0.00022293,2]
[313192551,1706911103538,158.7,0.00021976,2]
[313192552,1706911103955,158.7,0.00022358,2]
[313192553,1706911155497,250.0,0.00021783,2]
[313192554,1706911199546,368.98,0.00019876,2]
[313192555,1706911199737,368.98,0.0002214,2]
[313192556,1706911253964,257.78,0.00021999,2]
[313192557,1706911255239,257.78,0.00022136,2]
[313192558,1706911256525,257.78,0.00022273,2]
[313192559,1706911257811,407.78,0.0002241,2]
[313192560,1706911359056,2000.0,0.0002175,2]
[313192561,1706911406019,250.0,0.00021918,2]
[313192562,1706911416779,319.13872671,0.0002241,2]
[313192563,1706911441615,672.06,0.00021645,2]
[313192564,1706911457291,472.36,0.00021741,2]
[313192565,1706911482314,154.19383368,0.00021988,2]
[313192566,1706911503593,150.36,0.0002174,2]
[313192567,1706911522247,292.48758801,0.00022439,2]
[313192568,1706911527200,292.48758793,0.00022453,2]
[313192569,1706911532220,292.48758793,0.00022466,2]
[313192570,1706911537229,292.48758793,0.0002248,2]
[313192571,1706911539789,156.91,0.00021911,2]
[313192572,1706911540005,156.91,0.00022291,2]
[313192573,1706911542202,292.48758793,0.00022494,2]
[313192574,1706911634112,339.97,0.00019719,2]
[313192575,1706911634333,339.97,0.00021983,2]
[313192576,1706911659876,215.77878553,0.00022499,2]
[313192577,1706911691347,526.76054417,0.00022499,2]
[313192578,1706911695479,1405.71928031,0.00022499,2]
[313192579,1706911700199,155.0,0.00022499,2]
[313192580,1706911718028,1858.12367916,0.00022499,2]
[313192581,1706911718614,19057.21734432,0.00022499,2]
[313192582,1706911757025,-600.0,0.000225,2]
[313192586,1706911765854,526.76054417,0.00022499,2]
[313192587,1706911776706,155.0,0.00022499,2]
[313192588,1706911776733,372.35831287,0.00022499,2]
[313192589,1706911798532,1858.12367916,0.00022499,2]
[313192590,1706911799607,496.8946229,0.00022499,2]
[313192591,1706911802111,496.8946229,0.00022499,2]
[313192592,1706911804610,496.8946229,0.00022499,2]
[313192593,1706911807113,496.8946229,0.00022499,2]
[313192594,1706911809610,496.8946229,0.00022499,2]
[313192595,1706911814114,496.8946229,0.00022499,2]
[313192596,1706911816611,496.8946229,0.00022499,2]
[313192597,1706911821119,496.8946229,0.00022499,2]
[313192598,1706911825615,496.8946229,0.00022499,2]
[313192611,1706911832055,-4630.97252369,0.000225,2]
[313192613,1706911832065,-292.48758793,0.00022507,2]